bitfinex/quotes_BTCUSD_20230101
["timestamp","ask_amount","ask_price","bid_price","bid_amount"]
[1672601192370,0.57087569,16631.0,16630.0,0.703]
[1672601198326,0.57087569,16631.0,16630.0,0.003]
[1672601199199,0.57087569,16631.0,16630.0,0.703]
[1672601201266,0.57087569,16631.0,16630.0,0.74910733]
[1672601205362,0.57087569,16631.0,16630.0,0.04910733]
[1672601206309,0.57087569,16631.0,16630.0,0.74910733]
[1672601207426,0.57087569,16631.0,16630.0,0.74904427]
[1672601212363,0.57087569,16631.0,16630.0,0.04904427]
[1672601213338,0.57087569,16631.0,16630.0,0.74904427]
[1672601216491,0.57087569,16631.0,16630.0,0.74926668]
[1672601219269,1.17216169,16631.0,16630.0,0.04904427]
[1672601219521,1.79275169,16631.0,16630.0,0.04904427]
[1672601220239,1.79275169,16631.0,16630.0,0.74904427]
[1672601220952,1.17216169,16631.0,16630.0,0.74904427]
[1672601227630,1.17216169,16631.0,16630.0,0.04904427]
[1672601228622,1.17216169,16631.0,16630.0,0.74904427]
[1672601230412,1.17216169,16631.0,16630.0,0.74898116]
[1672601234218,0.12361864,16631.0,16630.0,0.74898116]
[1672601234465,0.73311127,16631.0,16630.0,1.88026758]
[1672601234727,0.12361864,16631.0,16630.0,1.88026758]
[1672601235727,0.00561864,16631.0,16630.0,1.87739375]
[1672601235967,0.09961864,16631.0,16630.0,1.88239375]
[1672601236219,0.09961864,16631.0,16630.0,1.87739375]
[1672601236220,0.61511127,16631.0,16630.0,1.87739375]
[1672601236474,0.66011127,16631.0,16630.0,1.88339375]
[1672601238476,0.66011127,16631.0,16630.0,1.26280375]
[1672601244325,0.66011127,16631.0,16630.0,1.06280375]
[1672601244820,0.05061864,16631.0,16630.0,1.76280375]
[1672601245324,0.66011127,16631.0,16630.0,1.76280375]
[1672601246306,0.05061864,16631.0,16630.0,1.76280375]
[1672601247581,0.66011127,16631.0,16630.0,1.76280375]
[1672601247829,0.66011127,16631.0,16630.0,1.26280375]
[1672601248327,0.04561864,16631.0,16630.0,1.26280375]
[1672601250864,0.04561864,16631.0,16630.0,0.56280375]
[1672601251607,0.04561864,16631.0,16630.0,1.06280375]
[1672601251860,0.04561864,16631.0,16630.0,1.26280375]
[1672601253895,0.04561864,16631.0,16630.0,1.70902767]
[1672601254132,0.04561864,16631.0,16630.0,2.32961767]
[1672601254871,0.58657592,16631.0,16630.0,2.32961767]
[1672601255121,0.04561864,16631.0,16630.0,1.70902767]
[1672601257916,0.04561864,16631.0,16630.0,1.00902767]
[1672601258681,0.04561864,16631.0,16630.0,1.70902767]
[1672601258934,0.04561864,16631.0,16630.0,2.32961767]
[1672601264686,0.04561864,16631.0,16630.0,1.62961767]
[1672601265449,0.04561864,16631.0,16630.0,2.32961767]
[1672601267213,0.65511127,16631.0,16630.0,2.32961767]
[1672601267452,0.04561864,16631.0,16630.0,2.32961767]
[1672601268701,0.5870115,16631.0,16630.0,2.42024325]
[1672601268947,0.04561864,16631.0,16630.0,3.1639397]
[1672601269476,0.04561864,16631.0,16630.0,3.1638601]
[1672601269724,0.5870115,16631.0,16630.0,3.1638601]
[1672601270456,0.5870115,16631.0,16630.0,3.41608589]
[1672601270965,0.5420115,16631.0,16630.0,3.41008589]
[1672601271224,0.5530115,16631.0,16630.0,3.45308589]
[1672601274212,0.5330115,16631.0,16630.0,3.45308589]
[1672601274691,0.5330115,16631.0,16630.0,2.83249589]
[1672601276274,0.5330115,16631.0,16630.0,2.13249589]
[1672601277130,0.5330115,16631.0,16630.0,2.83249589]
[1672601279476,0.5330115,16631.0,16630.0,3.45308589]
[1672601280206,0.5330115,16631.0,16630.0,2.5995381]
[1672601280485,0.5330115,16631.0,16630.0,1.9789481]
[1672601280712,0.5330115,16631.0,16630.0,2.5802701]
[1672601281405,0.5330115,16631.0,16630.0,1.9789481]
[1672601282600,0.5330115,16631.0,16630.0,1.3776261]
[1672601282601,0.62049263,16631.0,16630.0,1.3776261]
[1672601282837,0.011,16631.0,16630.0,1.3776261]
[1672601284276,0.011,16631.0,16630.0,1.3691261]
[1672601286414,0.55226923,16631.0,16630.0,1.3691261]
[1672601286894,0.011,16631.0,16630.0,1.3691261]
[1672601289725,0.011,16631.0,16630.0,0.6691261]
[1672601290798,0.011,16631.0,16630.0,1.3691261]
[1672601293527,0.62049263,16631.0,16630.0,1.3691261]
[1672601294299,0.62049263,16631.0,16630.0,1.36903513]
[1672601296922,0.62049263,16631.0,16630.0,1.37034515]
[1672601299151,0.62049263,16631.0,16630.0,1.36903513]
[1672601300126,0.62049263,16631.0,16630.0,1.36910063]
[1672601302633,0.62049263,16631.0,16630.0,0.66910063]
[1672601303136,0.62049263,16631.0,16630.0,0.66903513]
[1672601303594,0.62049263,16631.0,16630.0,1.36903513]
[1672601304124,0.011,16631.0,16630.0,1.36903513]
[1672601305377,0.011,16631.0,16630.0,1.36915662]
[1672601305861,0.62049263,16631.0,16630.0,1.36915662]
[1672601306836,0.011,16631.0,16630.0,0.78905825]
[1672601307353,0.011,16631.0,16630.0,1.40964825]
[1672601307801,0.011,16631.0,16630.0,2.02713881]
[1672601308575,0.011,16631.0,16630.0,1.40964825]
[1672601308829,0.4620129,16631.0,16630.0,3.00492008]
[1672601309100,0.82281789,16631.0,16630.0,3.21294225]
[1672601309330,0.82281789,16631.0,16630.0,3.58184431]
[1672601309331,0.64240442,16631.0,16630.0,3.58184431]
[1672601309823,0.82273094,16631.0,16630.0,3.58184431]
[1672601310090,0.46192595,16631.0,16630.0,3.58184431]
[1672601310335,0.46192595,16631.0,16630.0,3.60860526]
[1672601310336,0.55213151,16631.0,16630.0,3.60860526]
[1672601310607,0.54126687,16633.0,16631.0,0.406522]
[1672601310608,0.45090071,16633.0,16631.0,0.406522]
[1672601310873,0.45090071,16633.0,16632.0,3.6013171]
[1672601310874,0.18030128,16633.0,16632.0,3.6013171]
[1672601311124,0.70180924,16634.0,16633.0,1.01940326]
[1672601311375,0.68680924,16634.0,16633.0,2.2857208]
[1672601311629,0.23569756,16634.0,16633.0,2.30399175]
[1672601311891,0.23569756,16634.0,16633.0,2.9857208]
[1672601311892,0.05540482,16634.0,16633.0,2.9857208]
[1672601312390,0.05540482,16634.0,16633.0,3.00399175]
[1672601312631,0.05540482,16634.0,16633.0,3.0052393]
[1672601312880,0.05540482,16634.0,16633.0,2.98696835]
[1672601313112,0.05540482,16634.0,16633.0,3.12796835]
[1672601313609,0.05540482,16634.0,16633.0,3.42855835]
[1672601317615,0.04677482,16634.0,16633.0,3.42855835]
[1672601318137,0.04677482,16634.0,16633.0,3.68061069]
[1672601318396,0.04677482,16634.0,16633.0,3.01228889]
[1672601320654,0.22706756,16634.0,16633.0,2.40257489]
[1672601320926,0.22706756,16634.0,16633.0,3.00378889]
[1672601321918,0.22706756,16634.0,16633.0,2.86278889]
[1672601322163,0.22706756,16634.0,16633.0,3.00378889]
[1672601322406,0.04677482,16634.0,16633.0,3.00378889]
[1672601324808,0.04677482,16634.0,16633.0,2.86278889]
[1672601325305,0.04677482,16634.0,16633.0,3.00278889]
[1672601326569,0.04661433,16634.0,16633.0,3.00278889]
[1672601327067,0.04661433,16634.0,16633.0,2.86278889]
[1672601327319,0.04661433,16634.0,16633.0,3.00178889]
[1672601332500,0.04161433,16634.0,16633.0,3.00178889]
[1672601334742,0.04161433,16634.0,16633.0,3.30178889]
[1672601338709,0.04161433,16634.0,16633.0,3.00178889]
[1672601339750,0.04161433,16634.0,16633.0,3.30178889]
[1672601339992,0.04161433,16634.0,16633.0,3.00178889]
[1672601343424,0.22190707,16634.0,16633.0,3.00178889]
[1672601345382,0.67285843,16634.0,16633.0,3.00178889]
[1672601347369,0.85343222,16634.0,16633.0,3.00178889]
[1672601347626,0.49262723,16634.0,16633.0,3.00178889]
[1672601347864,0.85325353,16634.0,16633.0,3.00178889]
[1672601348603,0.49262723,16634.0,16633.0,3.00178889]
[1672601349089,0.85326572,16634.0,16633.0,3.00178889]
[1672601349345,0.49262723,16634.0,16633.0,3.00178889]
[1672601349843,0.49262723,16634.0,16633.0,3.30178889]
[1672601350096,0.49262723,16634.0,16633.0,3.00178889]
[1672601353358,0.04161433,16634.0,16633.0,3.00178889]
[1672601353864,0.04161433,16634.0,16633.0,2.11710646]
[1672601354115,0.67310472,16634.0,16633.0,3.42617646]
[1672601354382,0.49266188,16634.0,16633.0,3.42617646]
[1672601354620,0.22202565,16634.0,16633.0,3.42617646]
[1672601355111,0.49266188,16634.0,16633.0,3.28708495]
[1672601355347,0.49266188,16634.0,16633.0,3.42608495]
[1672601355589,0.49266188,16634.0,16633.0,3.28708495]
[1672601355834,0.49266188,16634.0,16633.0,3.97832345]
[1672601356322,0.49266188,16634.0,16633.0,3.42556922]
[1672601356565,0.49266188,16634.0,16633.0,4.04602192]
[1672601357579,0.49266188,16634.0,16633.0,3.74545192]
[1672601357838,0.49266188,16634.0,16633.0,4.04605192]
[1672601358823,0.22202565,16634.0,16633.0,4.04605192]
[1672601360797,0.22202565,16634.0,16633.0,2.84362392]
[1672601361033,0.22202565,16634.0,16633.0,3.44483792]
[1672601361539,0.22202565,16634.0,16633.0,4.04605192]
[1672601363613,0.22202565,16634.0,16633.0,3.42559922]
[1672601364097,0.04161433,16634.0,16633.0,3.91188837]
[1672601364336,0.04161433,16634.0,16633.0,3.77288837]
[1672601364821,0.04161433,16634.0,16633.0,3.42559922]
[1672601365563,0.04161433,16634.0,16633.0,3.90552822]
[1672601366057,0.22202565,16634.0,16633.0,3.90552822]
[1672601366543,0.04161433,16634.0,16633.0,3.53808404]
[1672601366786,0.22202565,16634.0,16633.0,3.90555763]
[1672601367566,0.22202565,16634.0,16633.0,3.53808404]
[1672601367818,0.49266188,16634.0,16633.0,3.53808404]
[1672601368317,0.49266188,16634.0,16633.0,3.90583227]
[1672601368566,0.49266188,16634.0,16633.0,3.90580947]
[1672601369562,0.22202565,16634.0,16633.0,3.90580947]
[1672601369808,0.04161433,16634.0,16633.0,3.90580947]
[1672601370812,0.33333177,16636.0,16634.0,0.5]
[1672601371054,0.61559917,16637.0,16636.0,0.5]
[1672601371300,0.61559917,16637.0,16636.0,1.007425]
[1672601372047,0.61559917,16637.0,16636.0,1.707425]
[1672601372295,0.09077384,16637.0,16636.0,1.707425]
[1672601373057,0.09077384,16637.0,16636.0,1.846425]
[1672601376051,0.09077384,16637.0,16636.0,3.71081893]
[1672601376289,0.09077384,16637.0,16636.0,3.34288821]
[1672601377040,0.09077384,16637.0,16636.0,3.20388821]
[1672601377286,0.09077384,16637.0,16636.0,3.34288821]
[1672601377573,0.09077384,16637.0,16636.0,3.20388821]
[1672601377807,0.09077384,16637.0,16636.0,3.34288821]
[1672601378054,0.54137906,16637.0,16636.0,3.34288821]
[1672601378812,0.90184227,16637.0,16636.0,3.34288821]
[1672601379306,0.90184227,16637.0,16636.0,3.04288821]
[1672601379798,0.54137906,16637.0,16636.0,3.04288821]
[1672601380561,0.90183944,16637.0,16636.0,3.04288821]
[1672601380821,0.54137906,16637.0,16636.0,3.04288821]
[1672601382799,0.09077384,16637.0,16636.0,3.04288821]
[1672601385250,0.09077384,16637.0,16636.0,3.04300687]
[1672601385500,0.63149603,16637.0,16636.0,3.04300687]
[1672601385771,0.09077384,16637.0,16636.0,3.04300687]
[1672601386276,0.63149603,16637.0,16636.0,3.04300687]
[1672601388465,0.63149603,16637.0,16636.0,2.44764966]
[1672601388714,1.155495,16637.0,16636.0,1.44022466]
[1672601389485,1.155495,16637.0,16636.0,2.04133066]
[1672601390959,1.155495,16637.0,16636.0,1.44022466]
[1672601391180,1.155495,16637.0,16636.0,1.44016248]
[1672601392186,0.61477281,16637.0,16636.0,1.44016248]
[1672601393222,0.60977281,16637.0,16636.0,1.44016248]
[1672601396352,0.60965515,16637.0,16636.0,0.74016248]
[1672601396811,1.21914778,16637.0,16636.0,0.74016248]
[1672601397321,1.83954778,16637.0,16636.0,0.83911866]
[1672601399302,1.21914778,16637.0,16636.0,0.83911866]
[1672601399545,1.83954778,16637.0,16636.0,0.83911866]
[1672601401832,1.21914778,16637.0,16636.0,0.83911866]
[1672601402050,1.83865904,16637.0,16636.0,0.83911866]
[1672601402310,1.21825904,16637.0,16636.0,0.83911866]
[1672601403297,0.69426007,16637.0,16636.0,0.83911866]
[1672601404062,0.69426007,16637.0,16636.0,0.70011866]
[1672601404320,0.69526007,16637.0,16636.0,0.83911866]
[1672601405314,0.69526007,16637.0,16636.0,0.83935017]
[1672601405555,0.69526007,16637.0,16636.0,0.83911866]
[1672601406064,0.08665618,16637.0,16636.0,0.83911866]
[1672601407824,1.2276893,16637.0,16636.0,0.83911866]
[1672601408070,1.8480893,16637.0,16636.0,0.83911866]
[1672601410743,1.2276893,16637.0,16636.0,0.83911866]
[1672601411244,1.8480893,16637.0,16636.0,0.83911866]
[1672601411708,1.2276893,16637.0,16636.0,0.83911866]
[1672601411957,0.69526007,16637.0,16636.0,0.83911866]
[1672601412216,0.62735266,16637.0,16636.0,2.03718683]
[1672601412467,0.62735266,16637.0,16636.0,2.01789283]
[1672601413003,0.62635266,16637.0,16636.0,2.49929283]
[1672601413247,0.08565618,16637.0,16636.0,2.63829283]
[1672601415354,0.08565618,16637.0,16636.0,2.63960237]
[1672601416280,0.62635266,16637.0,16636.0,2.63960237]
[1672601417186,0.62635266,16637.0,16636.0,2.62960237]
[1672601421671,0.62635266,16637.0,16636.0,2.66982119]
[1672601422615,0.62635266,16637.0,16636.0,3.11613307]
[1672601424890,0.62635266,16637.0,16636.0,3.71723907]
[1672601428822,0.61364646,16637.0,16636.0,3.71723907]
[1672601430569,0.61364646,16637.0,16636.0,3.02712041]
[1672601431612,0.61364646,16637.0,16636.0,3.72712041]
[1672601433591,0.61364646,16637.0,16636.0,3.72581087]
[1672601433856,0.07294998,16637.0,16636.0,3.72581087]
[1672601437062,0.07294998,16637.0,16636.0,3.72587633]
[1672601437306,0.07294998,16637.0,16636.0,3.27956445]
[1672601437552,0.07294998,16637.0,16636.0,3.72587633]
[1672601438093,0.07294998,16637.0,16636.0,3.72581087]
[1672601439317,0.61364646,16637.0,16636.0,3.72581087]
[1672601440564,0.61364646,16637.0,16636.0,3.72587633]
[1672601440807,0.61364646,16637.0,16636.0,2.70183082]
[1672601441057,0.61364646,16637.0,16636.0,1.48032482]
[1672601441558,0.61364646,16637.0,16636.0,1.48039028]
[1672601451554,0.07294998,16637.0,16636.0,1.48039028]
[1672601452786,0.07294998,16637.0,16636.0,1.48029601]
[1672601454813,0.07294998,16637.0,16636.0,0.78029601]
[1672601455789,0.07294998,16637.0,16636.0,1.48029601]
[1672601456049,0.07294998,16637.0,16636.0,2.10063055]
[1672601457302,0.07294998,16637.0,16636.0,2.10069601]
[1672601457799,0.07294998,16637.0,16636.0,2.10063055]
[1672601458332,0.07294998,16637.0,16636.0,2.10069601]
[1672601458831,0.07294998,16637.0,16636.0,2.10063055]
[1672601459325,0.07294998,16637.0,16636.0,1.48023055]
[1672601460572,0.68155387,16637.0,16636.0,1.48023055]
[1672601461809,1.25746793,16637.0,16636.0,0.87921882]
[1672601462288,1.25746793,16637.0,16636.0,0.87928428]
[1672601462546,1.25746793,16637.0,16636.0,0.87921882]
[1672601463788,1.25746793,16637.0,16636.0,0.87928428]
[1672601464274,1.25746793,16637.0,16636.0,0.87921882]
[1672601464898,1.25746793,16637.0,16636.0,0.87928428]
[1672601467682,1.87786793,16637.0,16636.0,0.87928428]
[1672601468460,1.26926404,16637.0,16636.0,0.87928428]
[1672601469725,1.87786793,16637.0,16636.0,0.87921882]
[1672601474277,1.87786793,16637.0,16636.0,0.87911157]
[1672601475012,1.87786793,16637.0,16636.0,2.04376346]
[1672601475013,0.07294998,16637.0,16636.0,2.04376346]
[1672601480075,0.68155387,16637.0,16636.0,2.043698]
[1672601480846,0.68155387,16637.0,16636.0,1.442592]
[1672601481577,0.68155387,16637.0,16636.0,0.87911157]
[1672601481578,1.11220053,16637.0,16636.0,0.87911157]
[1672601481833,1.73260053,16637.0,16636.0,0.87911157]
[1672601482080,1.12399664,16637.0,16636.0,0.87911157]
[1672601482574,1.18543055,16637.0,16636.0,0.87911157]
[1672601482812,1.12399664,16637.0,16636.0,0.87911157]
[1672601483581,1.72506564,16637.0,16636.0,0.87911157]
[1672601483832,1.72506564,16637.0,16636.0,0.88161157]
[1672601484338,1.72506564,16637.0,16636.0,0.74271882]
[1672601484553,1.72606564,16637.0,16636.0,0.87971882]
[1672601485050,1.72506564,16637.0,16636.0,0.74271882]
[1672601485299,1.72606564,16637.0,16636.0,0.87971882]
[1672601487055,2.5627047,16637.0,16636.0,0.87971882]
[1672601487314,2.32713464,16637.0,16636.0,0.87971882]
[1672601488078,2.77344652,16637.0,16636.0,0.87971882]
[1672601488373,2.32713464,16637.0,16636.0,0.87971882]
[1672601489581,2.77344652,16637.0,16636.0,0.87971882]
[1672601489843,3.20265882,16637.0,16636.0,0.87971882]
[1672601490343,2.77201216,16637.0,16636.0,0.87971882]
[1672601490609,3.07201216,16637.0,16636.0,0.87971882]
[1672601490928,3.9595288,16637.0,16636.0,0.87971882]
[1672601491107,4.10854425,16637.0,16636.0,0.87971882]
[1672601491364,3.6595288,16637.0,16636.0,0.87971882]
[1672601491617,2.77101216,16637.0,16636.0,0.74271882]
[1672601491903,3.25698373,16637.0,16636.0,0.86971882]
[1672601494239,4.14450037,16637.0,16636.0,0.86971882]
[1672601494496,3.6605288,16637.0,16636.0,0.86971882]
[1672601494764,3.07301216,16637.0,16636.0,0.86961781]
[1672601495297,3.9605288,16637.0,16636.0,0.86961781]
[1672601502622,2.77301216,16637.0,16636.0,0.86961781]
[1672601502869,3.18522525,16637.0,16636.0,0.86961781]
[1672601503139,2.77301216,16637.0,16636.0,0.86961781]
[1672601504409,3.55753119,16637.0,16636.0,0.86961781]
[1672601504676,3.07301216,16637.0,16636.0,0.86961781]
[1672601508761,3.06801216,16637.0,16636.0,0.86961781]
[1672601510694,2.78295611,16637.0,16636.0,0.86961781]
[1672601512464,3.08295611,16637.0,16636.0,0.86961781]
[1672601515196,2.78295611,16637.0,16636.0,0.86961781]
[1672601516947,2.33664423,16637.0,16636.0,0.86968327]
[1672601517185,2.33664423,16637.0,16636.0,0.86961781]
[1672601519199,2.78295611,16637.0,16636.0,0.86961781]
[1672601520935,2.33664423,16637.0,16636.0,0.86961781]
[1672601521181,2.78295611,16637.0,16636.0,0.86961781]
[1672601522683,3.13488411,16637.0,16636.0,0.86961781]
[1672601522923,4.02240075,16637.0,16636.0,0.86961781]
[1672601523654,4.32240075,16637.0,16636.0,0.86961781]
[1672601524172,4.02240075,16637.0,16636.0,0.86961781]
[1672601524653,3.67047275,16637.0,16636.0,0.86961781]
[1672601526810,2.78295611,16637.0,16636.0,0.86961781]
[1672601527573,3.08295611,16637.0,16636.0,0.86961781]
[1672601527822,2.78295611,16637.0,16636.0,0.86961781]
[1672601528067,3.08295611,16637.0,16636.0,0.86961781]
[1672601528319,2.78295611,16637.0,16636.0,0.86961781]
[1672601528569,3.18432191,16637.0,16636.0,0.86961781]
[1672601529812,2.78295611,16637.0,16636.0,0.86961781]
[1672601530337,2.78295611,16637.0,16636.0,0.86954003]
[1672601530551,2.78295611,16637.0,16636.0,0.16954003]
[1672601531562,2.78295611,16637.0,16636.0,0.86954003]
[1672601537572,2.78295611,16637.0,16636.0,0.16954003]
[1672601538060,3.18432191,16637.0,16636.0,0.16954003]
[1672601539568,3.18432191,16637.0,16636.0,0.86954003]
[1672601539844,2.56392191,16637.0,16636.0,0.86954003]
[1672601541342,2.41976566,16637.0,16636.0,0.86954003]
[1672601541590,3.57087115,16637.0,16636.0,0.86954003]
[1672601544338,3.57079725,16637.0,16636.0,0.86954003]
[1672601545071,3.16943145,16637.0,16636.0,0.86954003]
[1672601546588,2.86943145,16637.0,16636.0,0.86954003]
[1672601547329,2.86943145,16637.0,16636.0,0.16954003]
[1672601547830,2.86943145,16637.0,16636.0,0.86954003]
[1672601548081,2.24903145,16637.0,16636.0,0.86954003]
[1672601548567,2.86943145,16637.0,16636.0,0.86954003]
[1672601550823,2.42311957,16637.0,16636.0,0.86954003]
[1672601551071,1.80271957,16637.0,16636.0,0.86954003]
[1672601552547,1.95743957,16637.0,16636.0,0.86954003]
[1672601553045,2.33714011,16637.0,16636.0,0.86954003]
[1672601553302,2.95754011,16637.0,16636.0,0.86954003]
[1672601553563,3.38479185,16637.0,16636.0,0.86954003]
[1672601554855,3.08479185,16637.0,16636.0,0.86954003]
[1672601555113,3.38479185,16637.0,16636.0,0.86954003]
[1672601556370,2.95754011,16637.0,16636.0,0.86954003]
[1672601557156,3.43042195,16637.0,16636.0,0.86954003]
[1672601557402,2.95754011,16637.0,16636.0,0.86954003]
[1672601558647,3.4086023,16637.0,16636.0,0.86954003]
[1672601558910,3.4086023,16637.0,16636.0,0.16954003]
[1672601560384,2.95754011,16637.0,16636.0,0.16954003]
[1672601562191,3.93414649,16637.0,16636.0,0.16954003]
[1672601562437,2.95754011,16637.0,16636.0,0.16954003]
[1672601564437,2.95754011,16637.0,16636.0,0.86954003]
[1672601564678,3.94264649,16637.0,16636.0,0.86954003]
[1672601565654,3.94064649,16637.0,16636.0,0.04254003]
[1672601566185,2.96404011,16637.0,16636.0,0.04254003]
[1672601566439,3.94063589,16637.0,16636.0,0.04254003]
[1672601566768,3.94063589,16637.0,16636.0,0.16154003]
[1672601566769,3.94263589,16637.0,16636.0,0.16154003]
[1672601567628,0.5,16636.0,16631.0,0.4332]
[1672601567879,0.5,16634.0,16633.0,0.7]
[1672601568123,3.06621144,16634.0,16633.0,0.7]
[1672601568372,3.95372792,16634.0,16633.0,0.7]
[1672601568617,3.06621144,16634.0,16633.0,0.7]
[1672601568874,3.48176759,16634.0,16633.0,0.7]
[1672601569128,3.95517635,16634.0,16633.0,0.7]
[1672601569371,4.84269869,16634.0,16633.0,0.7]
[1672601569610,3.95517635,16634.0,16633.0,0.7]
[1672601569871,4.84269792,16634.0,16633.0,0.7]
[1672601570131,4.84269716,16634.0,16633.0,0.707]
[1672601570379,4.85769716,16634.0,16633.0,0.707]
[1672601570874,4.44214101,16634.0,16633.0,0.707]
[1672601571118,3.5546202,16634.0,16633.0,0.707]
[1672601571869,3.5396202,16634.0,16633.0,0.7]
[1672601572862,3.5396202,16634.0,16633.0,0.706]
[1672601572863,3.5556202,16634.0,16633.0,0.706]
[1672601573116,3.56998958,16634.0,16633.0,0.7]
[1672601573375,3.58598958,16634.0,16633.0,0.706]
[1672601575621,4.07346558,16634.0,16633.0,0.706]
[1672601575867,3.58598958,16634.0,16633.0,0.706]
[1672601578116,4.91375925,16634.0,16633.0,0.706]
[1672601580163,3.58598958,16634.0,16633.0,0.706]
[1672601580651,4.00720889,16634.0,16633.0,0.706]
[1672601581150,4.89379409,16634.0,16633.0,0.706]
[1672601581412,4.59379409,16634.0,16633.0,0.706]
[1672601581673,4.89379409,16634.0,16633.0,0.706]
[1672601581890,4.59379409,16634.0,16633.0,0.706]
[1672601582328,4.89379409,16634.0,16633.0,0.706]
[1672601582851,4.59379409,16634.0,16633.0,0.706]
[1672601584374,2.79034469,16634.0,16633.0,0.706]
[1672601584624,3.23380013,16634.0,16633.0,0.706]
[1672601584888,2.79034469,16634.0,16633.0,0.706]
[1672601585140,4.12038533,16634.0,16633.0,0.706]
[1672601587184,3.67692989,16634.0,16633.0,0.706]
[1672601587428,4.16985488,16634.0,16633.0,0.706]
[1672601587680,3.28326968,16634.0,16633.0,0.706]
[1672601591894,3.28326968,16634.0,16633.0,0.70589217]
[1672601592155,2.79034469,16634.0,16633.0,0.70589217]
[1672601594036,2.79034469,16634.0,16633.0,0.006]
[1672601594316,2.79034469,16634.0,16633.0,0.706]
[1672601594560,3.67692989,16634.0,16633.0,0.706]
[1672601594818,4.16985488,16634.0,16633.0,0.706]
[1672601595577,3.28326968,16634.0,16633.0,0.706]
[1672601596539,4.16985488,16634.0,16633.0,0.706]
[1672601596782,3.28326968,16634.0,16633.0,0.706]
[1672601597801,4.16985488,16634.0,16633.0,0.706]
[1672601599074,3.67692989,16634.0,16633.0,0.706]
[1672601599569,2.79034469,16634.0,16633.0,0.706]
[1672601600071,2.79034469,16634.0,16633.0,0.006]
[1672601600320,3.67692989,16634.0,16633.0,0.006]
[1672601601297,3.67692989,16634.0,16633.0,0.706]
[1672601601540,4.05599895,16634.0,16633.0,0.706]
[1672601602809,2.29034469,16634.0,16633.0,0.70606548]
[1672601603050,1.66994469,16634.0,16633.0,0.706]
[1672601609025,1.66494469,16634.0,16633.0,0.706]
[1672601609278,1.66482431,16634.0,16633.0,0.706]
[1672601611544,3.17180951,16634.0,16633.0,0.706]
[1672601611795,3.60922246,16634.0,16633.0,0.706]
[1672601615321,3.60922246,16634.0,16633.0,0.006]
[1672601615827,3.60922246,16634.0,16633.0,0.706]
[1672601623574,3.17180951,16634.0,16633.0,0.00606548]
[1672601623823,3.17180951,16634.0,16633.0,0.70606548]
[1672601624036,3.17180951,16634.0,16633.0,0.706]
[1672601626569,3.17180951,16634.0,16633.0,0.75005547]
[1672601630571,3.17180951,16634.0,16633.0,0.7499936]
[1672601633375,3.17180951,16634.0,16633.0,0.0499936]
[1672601633873,3.60922246,16634.0,16633.0,0.0499936]
[1672601634388,3.60922246,16634.0,16633.0,0.7499936]
[1672601641508,3.60914609,16634.0,16633.0,0.7499936]
[1672601643970,3.60914609,16634.0,16633.0,0.0499936]
[1672601644212,3.60914609,16634.0,16633.0,0.7499936]
[1672601650295,3.60914609,16634.0,16633.0,0.0499936]
[1672601651394,3.60914609,16634.0,16633.0,0.7499936]
[1672601652348,2.98874609,16634.0,16633.0,0.7499936]
[1672601653074,2.72256089,16634.0,16633.0,0.7499936]
[1672601653824,3.16601633,16634.0,16633.0,0.7499936]
[1672601654071,2.72256089,16634.0,16633.0,0.7499936]
[1672601654317,2.10216089,16634.0,16633.0,0.7499936]
[1672601654561,2.54561633,16634.0,16633.0,0.7499936]
[1672601654832,3.16601633,16634.0,16633.0,0.7499936]
[1672601657317,3.16601633,16634.0,16633.0,0.0499936]
[1672601658298,3.16601633,16634.0,16633.0,0.7499936]
[1672601661721,2.72256089,16634.0,16633.0,0.7499936]
[1672601662242,3.16601633,16634.0,16633.0,0.7499936]
[1672601664269,3.16601633,16634.0,16633.0,0.04989817]
[1672601664767,2.28514794,16634.0,16633.0,0.04989817]
[1672601665019,3.1739431,16634.0,16633.0,0.74989817]
[1672601665757,2.5535431,16634.0,16633.0,0.74989817]
[1672601666979,1.66474794,16634.0,16633.0,0.74989817]
[1672601668477,2.28514794,16634.0,16633.0,0.74989817]
[1672601670230,1.81946794,16634.0,16633.0,0.74989817]
[1672601670463,1.66474794,16634.0,16633.0,0.74989817]
[1672601671204,1.63437856,16634.0,16633.0,0.74989817]
[1672601674756,2.25477856,16634.0,16633.0,0.74989817]
[1672601676709,1.63437856,16634.0,16633.0,0.74989817]
[1672601677466,2.25477856,16634.0,16633.0,0.74989817]
[1672601678725,1.63437856,16634.0,16633.0,0.74989817]
[1672601680553,2.25477856,16634.0,16633.0,0.74989817]
[1672601680799,1.63437856,16634.0,16633.0,0.74989817]
[1672601681041,2.25477856,16634.0,16633.0,0.74989817]
[1672601681306,2.25477856,16634.0,16633.0,0.04989817]
[1672601682278,2.25477856,16634.0,16633.0,0.74989817]
[1672601684718,2.25477856,16634.0,16633.0,0.74980669]
[1672601688148,2.25477856,16634.0,16633.0,0.04980669]
[1672601689133,2.25477856,16634.0,16633.0,0.74980669]
[1672601689351,1.63437856,16634.0,16633.0,0.74980669]
[1672601689872,2.25477856,16634.0,16633.0,0.74980669]
[1672601690603,1.63437856,16634.0,16633.0,0.74980669]
[1672601690846,2.25477856,16634.0,16633.0,0.74980669]
[1672601691087,1.63437856,16634.0,16633.0,0.74980669]
[1672601691303,2.25477856,16634.0,16633.0,0.74980669]
[1672601691768,1.63437856,16634.0,16633.0,0.74980669]
[1672601691977,2.25477856,16634.0,16633.0,0.74980669]
[1672601692425,1.63437856,16634.0,16633.0,0.74980669]
[1672601693327,2.25477856,16634.0,16633.0,0.74980669]
[1672601694001,1.63437856,16634.0,16633.0,0.74980669]
[1672601694237,2.25477856,16634.0,16633.0,0.74980669]
[1672601694461,1.63437856,16634.0,16633.0,0.74980669]
[1672601695198,2.25477856,16634.0,16633.0,0.04980669]
[1672601696158,2.25477856,16634.0,16633.0,0.74980669]
[1672601696953,1.63437856,16634.0,16633.0,0.74980669]
[1672601697205,2.25477856,16634.0,16633.0,0.74980669]
[1672601697976,1.63437856,16634.0,16633.0,0.74980669]
[1672601698191,2.25477856,16634.0,16633.0,0.74980669]
[1672601702220,2.25477856,16634.0,16633.0,0.04980669]
[1672601702741,2.24477856,16634.0,16633.0,0.04980669]
[1672601703042,2.27484461,16634.0,16633.0,0.04980669]
[1672601703215,2.27484461,16634.0,16633.0,0.74980669]
[1672601704189,2.24477856,16634.0,16633.0,0.74980669]
[1672601705467,1.62437856,16634.0,16633.0,0.74980669]
[1672601706919,2.51317372,16634.0,16633.0,0.74980669]
[1672601707173,3.13357372,16634.0,16633.0,0.74980669]
[1672601707655,3.12756172,16634.0,16633.0,0.74980669]
[1672601708653,2.50716172,16634.0,16633.0,0.74980669]
[1672601708896,3.12756172,16634.0,16633.0,0.74980669]
[1672601711172,2.50716172,16634.0,16633.0,0.74980669]
[1672601712657,2.53732185,16634.0,16633.0,0.74980669]
[1672601714547,1.64852669,16634.0,16633.0,0.74980669]
[1672601716090,3.15772185,16634.0,16633.0,0.74980669]